fUST/lending_fUST_20241031
["ID","MTS","AMOUNT","RATE_DAILY","PERIOD"]
[341098583,1730363897802,286.833348,0.00020764,2]
[341098584,1730363897998,286.833348,0.0002077,2]
[341098585,1730363898415,286.833348,0.00020775,2]
[341098588,1730363949560,164.623971,0.00013973,2]
[341098590,1730363968948,191.2654809,0.00020398,2]
[341098591,1730364004866,2416.754072,0.00020667,2]
[341098592,1730364006440,500.0,0.0002,2]
[341098593,1730364034143,24900.0,0.00020654,2]
[341098594,1730364060180,3196.2566407,0.00020809,2]
[341098596,1730364094291,200.0,0.00021,4]
[341098597,1730364129484,1502.7798739,0.0002068,2]
[341098598,1730364152026,483.9761621,0.00020684,2]
[341098599,1730364172051,200.0,0.00021,4]
[341098600,1730364184539,189.6261948,0.00020705,2]
[341098601,1730364244724,637.1426152,0.00034476,30]
[341098602,1730364440600,161.578219,0.00013973,2]
[341098605,1730364469776,172.658182,0.00020422,2]
[341098607,1730364493804,317.850416,0.00020696,2]
[341098608,1730364515598,167.938752,0.00020711,2]
[341098609,1730364515791,167.938752,0.00020728,2]
[341098610,1730364516000,167.938752,0.00020746,2]
[341098611,1730364516246,167.938752,0.00020763,2]
[341098612,1730364516447,167.938752,0.0002078,2]
[341098613,1730364516662,167.938752,0.00020797,2]
[341098614,1730364516882,167.938752,0.00020815,2]
[341098620,1730364577231,24900.0,0.0002073,2]
[341098625,1730364589692,1993.736308,0.00020727,2]
[341098664,1730364631812,-250.0,0.00021083,2]
[341098665,1730364631824,-250.0,0.00021141,2]
[341098666,1730364631834,-250.0,0.00021198,2]
[341098667,1730364631843,-250.0,0.00021256,2]
[341098668,1730364631854,-250.0,0.00021314,2]
[341098669,1730364631865,-250.0,0.00021372,2]
[341098670,1730364631874,-1993.736308,0.00021412,2]
[341098671,1730364631886,-250.0,0.0002143,2]
[341098672,1730364631896,-250.0,0.00021488,2]
[341098673,1730364631906,-250.0,0.00021545,2]
[341098674,1730364631916,-250.0,0.00021603,2]
[341098675,1730364631926,-250.0,0.00021661,2]
[341098676,1730364631935,-250.0,0.00021719,2]
[341098677,1730364631945,-250.0,0.00021777,2]
[341098678,1730364631954,-250.0,0.00021834,2]
[341098679,1730364631964,-150.0,0.00021874,2]
[341098680,1730364631977,-9320.0371756,0.00021881,2]
[341098681,1730364631987,-250.0,0.00021892,2]
[341098682,1730364631997,-300.0,0.00021894,2]
[341098683,1730364632007,-300.0,0.00021894,2]
[341098684,1730364632018,-150.112233,0.000219,3]
[341098685,1730364632028,-7164.3,0.00021917,2]
[341098686,1730364632038,-166.666666,0.00021918,2]
[341098687,1730364632052,-250.0,0.0002195,2]
[341098688,1730364632061,-195.75,0.00021963,2]
[341098689,1730364632071,-150.0,0.00021965,2]
[341098690,1730364632082,-500.0,0.00021973,2]
[341098691,1730364632092,-500.0,0.00021973,2]
[341098692,1730364632101,-212.36577874,0.00021973,2]
[341098693,1730364632112,-199.47790834,0.00021973,2]
[341098694,1730364632121,-500.3275878,0.00021973,2]
[341098695,1730364632131,-500.0,0.00021973,2]
[341098696,1730364632142,-169.06144595,0.00021973,2]
[341098697,1730364632152,-500.0,0.00021973,2]
[341098698,1730364632161,-500.0,0.00021973,2]
[341098699,1730364632172,-604.25282314,0.00021973,2]
[341098700,1730364632183,-631.46172926,0.00021973,2]
[341098701,1730364632195,-500.0,0.00021973,2]
[341098702,1730364632205,-500.0,0.00021973,2]
[341098703,1730364632215,-255.15937124,0.00021973,2]
[341098704,1730364632224,-501.05386674,0.00021973,2]
[341098705,1730364632234,-501.1064858,0.00021973,2]
[341098706,1730364632248,-501.79517388,0.00021973,2]
[341098707,1730364632258,-500.0,0.00021973,2]
[341098708,1730364632267,-500.0,0.00021973,2]
[341098709,1730364632276,-500.0,0.00021973,2]
[341098710,1730364632286,-500.0,0.00021973,2]
[341098711,1730364632296,-500.0,0.00021973,2]
[341098712,1730364632306,-500.0,0.00021973,2]
[341098713,1730364632315,-501.14,0.0002198,3]
[341098714,1730364632325,-5667.03395475,0.0002198,2]
[341098715,1730364632335,-1336.31,0.00021981,3]
[341098716,1730364632344,-668.15,0.00021981,3]
[341098717,1730364632354,-334.08,0.00021981,3]
[341098718,1730364632364,-167.04,0.00021983,3]
[341098719,1730364632374,-2327.50594208,0.0002199,2]
[341098720,1730364632385,-500.0,0.0002199,2]
[341098721,1730364632394,-500.0,0.0002199,2]
[341098722,1730364632404,-500.0,0.0002199,2]
[341098723,1730364632413,-500.0,0.0002199,2]
[341098724,1730364632425,-500.0,0.0002199,2]
[341098725,1730364632434,-500.0,0.0002199,2]
[341098726,1730364632444,-500.0,0.0002199,2]
[341098727,1730364632453,-500.0,0.0002199,2]
[341098728,1730364632463,-500.0,0.0002199,2]
[341098729,1730364632472,-500.0,0.0002199,2]
[341098730,1730364632482,-500.0,0.0002199,2]
[341098731,1730364632491,-500.0,0.0002199,2]
[341098732,1730364632502,-500.0,0.0002199,2]
[341098733,1730364632512,-500.0,0.0002199,2]
[341098734,1730364632522,-500.0,0.0002199,2]
[341098735,1730364632532,-550.35763585,0.0002199,2]
[341098736,1730364632541,-500.0,0.0002199,2]
[341098737,1730364632552,-500.0,0.0002199,2]
[341098738,1730364632562,-500.0,0.0002199,2]
[341098739,1730364632571,-500.0,0.0002199,2]
[341098740,1730364632580,-500.0,0.0002199,2]
[341098741,1730364632589,-500.0,0.0002199,2]
[341098742,1730364632599,-500.0,0.0002199,2]
[341098743,1730364632608,-505.76804382,0.0002199,2]
[341098744,1730364632733,-500.0,0.0002199,2]
[341098745,1730364632746,-500.0,0.0002199,2]
[341098746,1730364632757,-500.0,0.0002199,2]
[341098747,1730364632766,-500.0,0.0002199,2]
[341098748,1730364632775,-500.0,0.0002199,2]
[341098749,1730364632785,-500.0,0.0002199,2]
[341098750,1730364632795,-277.64094061,0.0002199,2]
[341098751,1730364632806,-500.0,0.0002199,2]
[341098752,1730364632816,-500.0,0.0002199,2]
[341098753,1730364632825,-500.0,0.0002199,2]
[341098754,1730364632834,-500.0,0.0002199,2]
[341098755,1730364632843,-500.0,0.0002199,2]
[341098756,1730364632853,-500.0,0.0002199,2]
[341098757,1730364632862,-500.0,0.0002199,2]
[341098758,1730364632872,-500.0,0.0002199,2]
[341098759,1730364632881,-500.0,0.0002199,2]
[341098760,1730364632893,-500.0,0.0002199,2]
[341098761,1730364632906,-500.0,0.0002199,2]
[341098762,1730364632916,-500.0,0.0002199,2]
[341098763,1730364632925,-500.0,0.0002199,2]
[341098764,1730364632935,-500.0,0.0002199,2]
[341098765,1730364632946,-500.0,0.0002199,2]
[341098766,1730364632957,-200.00000001,0.0002199,2]
[341098767,1730364632967,-500.0,0.0002199,2]
[341098768,1730364632979,-500.0,0.0002199,2]
[341098769,1730364632990,-500.0,0.0002199,2]
[341098770,1730364633002,-500.0,0.0002199,2]
[341098771,1730364633013,-500.0,0.0002199,2]
[341098772,1730364633023,-500.0,0.0002199,2]
[341098773,1730364633033,-500.0,0.0002199,2]
[341098774,1730364633043,-168.89677067,0.0002199,2]
[341098775,1730364633055,-500.0,0.0002199,2]
[341098776,1730364633067,-500.0,0.0002199,2]
[341098777,1730364633078,-500.0,0.0002199,2]
[341098778,1730364633088,-500.0,0.0002199,2]
[341098779,1730364633098,-500.0,0.0002199,2]
[341098780,1730364633108,-500.0,0.0002199,2]
[341098781,1730364633118,-500.0,0.0002199,2]
[341098782,1730364633131,-500.0,0.0002199,2]
[341098783,1730364633141,-500.0,0.0002199,2]
[341098784,1730364633153,-500.0,0.0002199,2]
[341098785,1730364633162,-500.0,0.0002199,2]
[341098786,1730364633171,-500.0,0.0002199,2]
[341098787,1730364633181,-500.0,0.0002199,2]
[341098788,1730364633191,-500.0,0.0002199,2]
[341098789,1730364633203,-500.0,0.0002199,2]
[341098790,1730364633213,-500.0,0.0002199,2]
[341098791,1730364633224,-500.0,0.0002199,2]
[341098792,1730364633233,-500.0,0.0002199,2]
[341098793,1730364633244,-500.0,0.0002199,2]
[341098794,1730364633254,-500.0,0.0002199,2]
[341098795,1730364633264,-500.0,0.0002199,2]
[341098796,1730364633274,-500.0,0.0002199,2]
[341098797,1730364633285,-500.0,0.0002199,2]
[341098798,1730364633295,-500.0,0.0002199,2]
[341098799,1730364633304,-500.0,0.0002199,2]
[341098800,1730364633314,-500.0,0.0002199,2]
[341098801,1730364633325,-500.0,0.0002199,2]
[341098802,1730364633335,-500.0,0.0002199,2]
[341098803,1730364633345,-522.75704805,0.0002199,2]
[341098804,1730364633355,-500.0,0.0002199,2]
[341098805,1730364633365,-500.0,0.0002199,2]
[341098806,1730364633375,-500.0,0.0002199,2]
[341098807,1730364633385,-500.0,0.0002199,2]
[341098808,1730364633395,-390.00000001,0.0002199,2]
[341098809,1730364633406,-500.0,0.0002199,2]
[341098810,1730364633416,-500.0,0.0002199,2]
[341098811,1730364633426,-500.0,0.0002199,2]
[341098812,1730364633437,-500.0,0.0002199,2]
[341098813,1730364633446,-500.0,0.0002199,2]
[341098814,1730364633457,-500.0,0.0002199,2]
[341098815,1730364633466,-500.0,0.0002199,2]
[341098816,1730364633475,-500.0,0.0002199,2]
[341098817,1730364633485,-500.0,0.0002199,2]
[341098818,1730364633495,-500.0,0.0002199,2]
[341098819,1730364633505,-500.0,0.0002199,2]
[341098820,1730364633515,-500.0,0.0002199,2]
[341098821,1730364633525,-500.0,0.0002199,2]
[341098822,1730364633535,-500.0,0.0002199,2]
[341098823,1730364633544,-500.0,0.0002199,2]
[341098824,1730364633553,-500.0,0.0002199,2]
[341098825,1730364633563,-500.0,0.0002199,2]
[341098826,1730364633573,-500.0,0.0002199,2]
[341098827,1730364633583,-490.89763565,0.0002199,2]
[341098828,1730364633593,-500.0,0.0002199,2]
[341098829,1730364633603,-500.0,0.0002199,2]
[341098830,1730364633612,-500.0,0.0002199,2]
[341098831,1730364633622,-500.0,0.0002199,2]
[341098832,1730364633632,-500.0,0.0002199,2]
[341098833,1730364633641,-500.0,0.0002199,2]
[341098834,1730364633651,-500.0,0.0002199,2]
[341098835,1730364633659,-500.0,0.0002199,2]
[341098836,1730364633669,-500.0,0.0002199,2]
[341098837,1730364633678,-500.0,0.0002199,2]
[341098838,1730364633687,-500.0,0.0002199,2]
[341098839,1730364633697,-500.0,0.0002199,2]
[341098840,1730364633707,-500.0,0.0002199,2]
[341098841,1730364633717,-302.2757048,0.0002199,2]
[341098842,1730364633727,-500.0,0.0002199,2]
[341098843,1730364633737,-500.0,0.0002199,2]
[341098844,1730364633746,-500.0,0.0002199,2]
[341098845,1730364633756,-500.0,0.0002199,2]
[341098846,1730364633767,-500.0,0.0002199,2]
[341098847,1730364633777,-500.0,0.0002199,2]
[341098848,1730364633787,-500.0,0.0002199,2]
[341098849,1730364633796,-500.0,0.0002199,2]
[341098850,1730364633805,-500.0,0.0002199,2]
[341098851,1730364633815,-500.0,0.0002199,2]
[341098852,1730364633825,-500.0,0.0002199,2]
[341098853,1730364633835,-500.0,0.0002199,2]
[341098854,1730364633844,-500.0,0.0002199,2]
[341098855,1730364633855,-500.0,0.0002199,2]
[341098856,1730364633866,-500.0,0.0002199,2]
[341098857,1730364633876,-500.0,0.0002199,2]
[341098858,1730364633886,-500.0,0.0002199,2]
[341098859,1730364633895,-500.0,0.0002199,2]
[341098860,1730364633904,-500.0,0.0002199,2]
[341098861,1730364633914,-500.0,0.0002199,2]
[341098862,1730364633923,-500.0,0.0002199,2]
[341098863,1730364633933,-500.0,0.0002199,2]
[341098864,1730364633944,-458.84099191,0.0002199,2]
[341098865,1730364633953,-500.0,0.0002199,2]
[341098866,1730364633964,-500.0,0.0002199,2]
[341098867,1730364633976,-500.0,0.0002199,2]
[341098868,1730364633987,-500.0,0.0002199,2]
[341098869,1730364633997,-500.0,0.0002199,2]
[341098870,1730364634007,-555.14379184,0.0002199,2]
[341098871,1730364634018,-534.88615058,0.0002199,2]
[341098872,1730364634027,-531.89471607,0.0002199,2]
[341098873,1730364634037,-534.88615058,0.0002199,2]
[341098874,1730364634047,-534.88615058,0.0002199,2]
[341098875,1730364634057,-531.89471607,0.0002199,2]
[341098876,1730364634067,-534.88615058,0.0002199,2]
[341098877,1730364634077,-531.89471607,0.0002199,2]
[341098878,1730364634086,-534.88615058,0.0002199,2]
[341098879,1730364634098,-531.89471607,0.0002199,2]
[341098880,1730364634109,-534.88615058,0.0002199,2]
[341098881,1730364634119,-531.89471607,0.0002199,2]
[341098882,1730364634129,-534.88615058,0.0002199,2]
[341098883,1730364634139,-531.89471607,0.0002199,2]
[341098884,1730364634149,-534.88615058,0.0002199,2]
[341098885,1730364634159,-531.89471607,0.0002199,2]
[341098886,1730364634170,-534.88615058,0.0002199,2]
[341098887,1730364634180,-531.89471607,0.0002199,2]
[341098888,1730364634189,-534.88615058,0.0002199,2]
[341098889,1730364634199,-531.89471607,0.0002199,2]
[341098890,1730364634209,-534.88615058,0.0002199,2]
[341098891,1730364634220,-531.89471607,0.0002199,2]
[341098892,1730364634229,-534.88615058,0.0002199,2]
[341098893,1730364634240,-531.89471607,0.0002199,2]
[341098894,1730364634251,-534.88615058,0.0002199,2]
[341098895,1730364634262,-531.89471607,0.0002199,2]
[341098896,1730364634272,-534.88615058,0.0002199,2]
[341098897,1730364634282,-531.89471607,0.0002199,2]
[341098898,1730364634292,-534.88615058,0.0002199,2]
[341098899,1730364634301,-534.88615058,0.0002199,2]
[341098900,1730364634311,-531.89471607,0.0002199,2]
[341098901,1730364634322,-531.89471607,0.0002199,2]
[341098902,1730364634332,-531.89471607,0.0002199,2]
[341098903,1730364634342,-534.88615058,0.0002199,2]
[341098904,1730364634351,-531.89471607,0.0002199,2]
[341098905,1730364634361,-534.88615058,0.0002199,2]
[341098906,1730364634371,-531.89471607,0.0002199,2]
[341098907,1730364634381,-534.88615058,0.0002199,2]
[341098908,1730364634463,-531.89471607,0.0002199,2]
[341098909,1730364634473,-534.88615058,0.0002199,2]
[341098910,1730364634483,-531.89471607,0.0002199,2]
[341098911,1730364634492,-534.88615058,0.0002199,2]
[341098912,1730364634502,-531.89471607,0.0002199,2]
[341098913,1730364634512,-534.88615058,0.0002199,2]
[341098914,1730364634522,-531.89471607,0.0002199,2]
[341098915,1730364634532,-534.88615058,0.0002199,2]
[341098916,1730364634542,-531.89471607,0.0002199,2]
[341098917,1730364634551,-534.88615058,0.0002199,2]
[341098918,1730364634561,-531.89471607,0.0002199,2]
[341098919,1730364634570,-534.88615058,0.0002199,2]
[341098920,1730364634580,-534.88615058,0.0002199,2]
[341098921,1730364634589,-531.89471607,0.0002199,2]
[341098922,1730364634598,-531.89471607,0.0002199,2]
[341098923,1730364634608,-534.88615058,0.0002199,2]
[341098924,1730364634620,-534.88615058,0.0002199,2]
[341098925,1730364634630,-531.89471607,0.0002199,2]
[341098926,1730364634640,-531.89471607,0.0002199,2]
[341098927,1730364634652,-534.88615058,0.0002199,2]
[341098928,1730364634661,-534.88615058,0.0002199,2]
[341098929,1730364634671,-531.89471607,0.0002199,2]
[341098930,1730364634681,-534.88615058,0.0002199,2]
[341098931,1730364634693,-531.89471607,0.0002199,2]
[341098932,1730364634703,-534.88615058,0.0002199,2]
[341098933,1730364634714,-534.88615058,0.0002199,2]
[341098934,1730364634724,-531.89471607,0.0002199,2]
[341098935,1730364634736,-534.88615058,0.0002199,2]
[341098936,1730364634750,-534.88615058,0.0002199,2]
[341098937,1730364634761,-531.89471607,0.0002199,2]
[341098938,1730364634771,-534.88615058,0.0002199,2]
[341098939,1730364634782,-531.89471607,0.0002199,2]
[341098940,1730364634794,-534.88615058,0.0002199,2]
[341098941,1730364634804,-531.89471607,0.0002199,2]
[341098942,1730364634815,-531.89471607,0.0002199,2]
[341098943,1730364634827,-531.89471607,0.0002199,2]
[341098944,1730364634837,-531.89471607,0.0002199,2]
[341098945,1730364634848,-531.89471607,0.0002199,2]
[341098946,1730364634859,-531.89471607,0.0002199,2]
[341098947,1730364634869,-531.89471607,0.0002199,2]
[341098948,1730364634880,-531.89471607,0.0002199,2]
[341098949,1730364634890,-534.88615058,0.0002199,2]
[341098950,1730364634900,-531.89471607,0.0002199,2]
[341098951,1730364634911,-534.88615058,0.0002199,2]
[341098952,1730364634922,-531.89471607,0.0002199,2]
[341098953,1730364634931,-534.88615058,0.0002199,2]
[341098954,1730364634940,-531.89471607,0.0002199,2]
[341098955,1730364634950,-534.88615058,0.0002199,2]
[341098956,1730364634959,-531.89471607,0.0002199,2]
[341098957,1730364634972,-534.88615058,0.0002199,2]
[341098958,1730364634982,-531.89471607,0.0002199,2]
[341098959,1730364634991,-534.88615058,0.0002199,2]
[341098960,1730364635000,-534.88615058,0.0002199,2]
[341098961,1730364635011,-534.88615058,0.0002199,2]
[341098962,1730364635021,-531.89471607,0.0002199,2]
[341098963,1730364635031,-534.88615058,0.0002199,2]
[341098964,1730364635040,-531.89471607,0.0002199,2]
[341098965,1730364635052,-534.88615058,0.0002199,2]
[341098966,1730364635062,-534.88615058,0.0002199,2]
[341098967,1730364635071,-531.89471607,0.0002199,2]
[341098968,1730364635081,-534.88615058,0.0002199,2]
[341098969,1730364635091,-531.89471607,0.0002199,2]
[341098970,1730364635100,-534.88615058,0.0002199,2]
[341098971,1730364635109,-531.89471607,0.0002199,2]
[341098972,1730364635118,-534.88615058,0.0002199,2]
[341098973,1730364635128,-531.89471607,0.0002199,2]
[341098974,1730364635137,-534.88615058,0.0002199,2]
[341098975,1730364635146,-531.89471607,0.0002199,2]
[341098976,1730364635155,-534.88615058,0.0002199,2]
[341098977,1730364635165,-531.89471607,0.0002199,2]
[341098978,1730364635174,-534.88615058,0.0002199,2]
[341098979,1730364635184,-531.89471607,0.0002199,2]
[341098980,1730364635193,-534.88615058,0.0002199,2]
[341098981,1730364635202,-531.89471607,0.0002199,2]
[341098982,1730364635211,-531.89471607,0.0002199,2]
[341098983,1730364635221,-534.88615058,0.0002199,2]
[341098984,1730364635232,-531.89471607,0.0002199,2]
[341098985,1730364635244,-531.89471607,0.0002199,2]
[341098986,1730364635254,-531.89471607,0.0002199,2]
[341098987,1730364635263,-520.0748335,0.0002199,2]
[341098988,1730364635272,-520.0748335,0.0002199,2]
[341098989,1730364635281,-520.0748335,0.0002199,2]
[341098990,1730364635291,-520.0748335,0.0002199,2]
[341098991,1730364635299,-520.0748335,0.0002199,2]
[341098992,1730364635310,-527.28833595,0.0002199,2]
[341098993,1730364635319,-520.0748335,0.0002199,2]
[341098994,1730364635328,-527.28833595,0.0002199,2]
[341098995,1730364635337,-520.0748335,0.0002199,2]
[341098996,1730364635347,-527.28833595,0.0002199,2]
[341098997,1730364635356,-520.0748335,0.0002199,2]
[341098998,1730364635365,-527.28833595,0.0002199,2]
[341098999,1730364635374,-520.0748335,0.0002199,2]
[341099000,1730364635383,-527.28833595,0.0002199,2]
[341099001,1730364635393,-520.0748335,0.0002199,2]
[341099002,1730364635403,-527.28833595,0.0002199,2]
[341099003,1730364635412,-520.0748335,0.0002199,2]
[341099004,1730364635422,-527.28833595,0.0002199,2]
[341099005,1730364635431,-520.0748335,0.0002199,2]
[341099006,1730364635442,-527.28833595,0.0002199,2]
[341099007,1730364635452,-520.0748335,0.0002199,2]
[341099008,1730364635462,-527.28833595,0.0002199,2]
[341099009,1730364635472,-520.0748335,0.0002199,2]
[341099010,1730364635481,-527.28833595,0.0002199,2]
[341099011,1730364635491,-520.0748335,0.0002199,2]
[341099012,1730364635501,-527.28833595,0.0002199,2]
[341099013,1730364635512,-527.28833595,0.0002199,2]
[341099014,1730364635525,-520.0748335,0.0002199,2]
[341099015,1730364635535,-527.28833595,0.0002199,2]
[341099016,1730364635544,-520.0748335,0.0002199,2]
[341099017,1730364635553,-527.28833595,0.0002199,2]
[341099018,1730364635562,-520.0748335,0.0002199,2]
[341099019,1730364635572,-527.28833595,0.0002199,2]
[341099020,1730364635583,-520.0748335,0.0002199,2]
[341099021,1730364635592,-527.28833595,0.0002199,2]
[341099022,1730364635601,-520.0748335,0.0002199,2]
[341099023,1730364635610,-527.28833595,0.0002199,2]
[341099024,1730364635620,-520.0748335,0.0002199,2]
[341099025,1730364635631,-527.28833595,0.0002199,2]
[341099026,1730364635642,-520.0748335,0.0002199,2]
[341099027,1730364635654,-527.28833595,0.0002199,2]
[341099028,1730364635663,-520.0748335,0.0002199,2]
[341099029,1730364635673,-527.28833595,0.0002199,2]
[341099030,1730364635682,-527.28833595,0.0002199,2]
[341099031,1730364635691,-527.28833591,0.0002199,2]
[341099032,1730364635700,-520.07483343,0.0002199,2]
[341099033,1730364635709,-7164.3,0.00021991,2]
[341099034,1730364635718,-7164.3,0.00021991,2]
[341099035,1730364635727,-7164.3,0.00021991,2]
[341099036,1730364635737,-7164.3,0.00021991,2]
[341099037,1730364635746,-7164.3,0.00021991,2]
[341099038,1730364635758,-7164.3,0.00021991,2]
[341099039,1730364635767,-7164.3,0.00021992,2]
[341099040,1730364635776,-7164.3,0.00021992,2]
[341099041,1730364635786,-7164.3,0.00021992,2]
[341099042,1730364635796,-151.0,0.00021992,7]
[341099043,1730364635806,-7164.3,0.00021994,2]
[341099044,1730364635817,-250.0,0.00022008,2]
[341099045,1730364635829,-250.0,0.00022066,2]
[341099046,1730364635841,-1993.736308,0.00022097,2]
[341099047,1730364635852,-250.0,0.00022123,2]
[341099048,1730364635862,-250.0,0.00022181,2]
[341099049,1730364635872,-150.0,0.00022337,2]
[341099050,1730364635882,-166.666666,0.00022431,2]
[341099051,1730364635892,-500.0,0.0002258,2]
[341099052,1730364635904,-500.0,0.0002258,2]
[341099053,1730364635913,-500.0,0.0002258,2]
[341099054,1730364635922,-150.0,0.00022582,2]
[341099055,1730364635931,-7164.3,0.00022646,2]
[341099056,1730364635940,-3409.59637357,0.00022646,2]
[341099057,1730364635950,-500.0,0.000227,2]
[341099058,1730364635960,-160.06001059,0.000227,2]
[341099059,1730364636037,-150.112233,0.000227,7]
[341099060,1730364636047,-500.0,0.00022765,2]
[341099061,1730364636058,-500.0,0.00022765,2]
[341099062,1730364636067,-500.0,0.00022765,2]
[341099063,1730364636076,-500.0,0.00022765,2]
[341099064,1730364636085,-150.0,0.00022847,2]
[341099065,1730364636095,-166.666666,0.00022944,2]
[341099066,1730364636104,-271.55909879,0.00023116,2]
[341099067,1730364636116,-504.80913533,0.00023116,2]
[341099068,1730364636127,-440.02763831,0.00023116,2]
[341099069,1730364636138,-150.0,0.00023139,2]
[341099070,1730364636149,-150.0,0.00023287,2]
[341099071,1730364636159,-2672.62,0.00023351,3]
[341099072,1730364636168,-1336.3,0.00023351,3]
[341099073,1730364636180,-668.16,0.00023351,3]
[341099074,1730364636191,-7164.3,0.00023351,2]
[341099075,1730364636202,-334.08,0.00023353,3]
[341099076,1730364636212,-3409.59637357,0.00023398,2]
[341099077,1730364636221,-166.666666,0.00023456,2]
[341099078,1730364636233,-150.112233,0.000235,10]
[341099079,1730364636243,-150.0,0.00023682,2]
[341099080,1730364636253,-420.0,0.00023794,2]
[341099081,1730364636263,-1000.0,0.000238,2]
[341099082,1730364636274,-198.838788,0.0002382,2]
[341099083,1730364636283,-178.9012465,0.00023836,2]
[341099084,1730364636294,-150.0,0.00023923,2]
[341099085,1730364636306,-166.666666,0.00023969,2]
[341099086,1730364636315,-999.99999999,0.00024,2]
[341099087,1730364636327,-420.0,0.00024083,2]
[341099088,1730364636337,-7164.3,0.00024084,2]
[341099089,1730364636347,-151.0,0.00024109,3]
[341099090,1730364636358,-151.0,0.00024109,7]
[341099091,1730364636367,-151.0,0.00024109,7]
[341099092,1730364636377,-151.0,0.00024109,7]
[341099093,1730364636386,-151.0,0.00024109,7]
[341099094,1730364636396,-151.0,0.00024109,7]
[341099095,1730364636411,-151.0,0.00024109,7]
[341099096,1730364636420,-151.0,0.00024109,7]
[341099097,1730364636429,-150.0,0.00024137,2]
[341099098,1730364636439,-3409.59637357,0.00024149,2]
[341099099,1730364636448,-7638.54306315,0.00024168,2]
[341099100,1730364636458,-151.0,0.00024168,7]
[341099101,1730364636468,-7164.3,0.00024195,2]
[341099102,1730364636478,-151.0,0.00024196,7]
[341099103,1730364636487,-151.0,0.00024196,7]
[341099104,1730364636497,-287.855792,0.00024196,7]
[341099105,1730364636506,-151.0,0.00024196,7]
[341099106,1730364636516,-164.623971,0.00024224,2]
[341099107,1730364636526,-151.0,0.00024289,7]
[341099108,1730364636535,-151.0,0.00024289,7]
[341099109,1730364636545,-150.112233,0.000243,10]
[341099110,1730364636554,-166.666666,0.00024482,2]
[341099111,1730364636563,-7164.3,0.00024488,2]
[341099112,1730364636572,-255.72826726,0.00024595,2]
[341099113,1730364636582,-7638.54306315,0.00024656,2]
[341099114,1730364636594,-150.0,0.00024658,2]
[341099115,1730364636604,-200.0,0.00024658,15]
[341099116,1730364636615,-500.118796,0.00024658,4]
[341099117,1730364636625,-380.0,0.00024658,2]
[341099118,1730364636635,-200.0,0.00024658,2]
[341099119,1730364636644,-216.314154,0.00024658,7]
[341099120,1730364636654,-216.314154,0.00024658,7]
[341099121,1730364636663,-500.0,0.00024658,2]
[341099122,1730364636674,-500.0,0.00024658,2]
[341099123,1730364636684,-500.0,0.00024658,2]
[341099124,1730364636695,-500.0,0.00024658,2]
[341099125,1730364636706,-500.0,0.00024658,2]
[341099126,1730364636716,-500.0,0.00024658,2]
[341099127,1730364636728,-319.30971861,0.00024658,2]
[341099128,1730364636740,-500.0,0.00024658,2]
[341099129,1730364636751,-500.0,0.00024658,2]
[341099130,1730364636761,-500.0,0.00024658,2]
[341099131,1730364636773,-500.0,0.00024658,2]
[341099132,1730364636784,-500.0,0.00024658,2]
[341099133,1730364636794,-500.0,0.00024658,2]
[341099134,1730364636805,-500.0,0.00024658,2]
[341099135,1730364636815,-500.0,0.00024658,2]
[341099136,1730364636828,-500.0,0.00024658,2]